fUST/lending_fUST_20240121
["ID","MTS","AMOUNT","RATE_DAILY","PERIOD"]
[312326977,1705776642250,-10000.0,0.00041095,10]
[312326979,1705776642259,-529.40393585,0.00041095,31]
[312326981,1705776642268,-500.0,0.00041095,31]
[312326983,1705776642277,-738.56,0.00041095,31]
[312326985,1705776642286,-500.0,0.00041095,31]
[312326987,1705776642295,-500.0,0.00041095,31]
[312326989,1705776642305,-711.36,0.00041095,31]
[312326991,1705776642314,-461.65658071,0.00041095,31]
[312326993,1705776642323,-500.0,0.00041095,31]
[312326995,1705776642332,-500.0,0.00041095,31]
[312326997,1705776642341,-1000.0,0.00041095,2]
[312326999,1705776642350,-500.58664242,0.00041095,31]
[312327001,1705776642359,-503.42789075,0.00041095,31]
[312327003,1705776642368,-500.0,0.00041095,31]
[312327005,1705776642377,-500.0,0.00041095,31]
[312327007,1705776642386,-500.0,0.00041095,31]
[312327009,1705776642395,-500.0,0.00041095,31]
[312327011,1705776642404,-500.0,0.00041095,31]
[312327013,1705776642413,-515.20763042,0.00041095,31]
[312327015,1705776642422,-500.0,0.00041095,31]
[312327017,1705776642431,-500.0,0.00041095,31]
[312327019,1705776642440,-500.0,0.00041095,31]
[312327021,1705776642449,-500.0,0.00041095,31]
[312327023,1705776642457,-286.49158774,0.00041095,31]
[312327025,1705776642466,-500.0,0.00041095,31]
[312327027,1705776642475,-500.0,0.00041095,31]
[312327028,1705776642484,-525.93641845,0.00041095,31]
[312327030,1705776642493,-508.92749129,0.00041095,31]
[312327032,1705776642502,-463.23684118,0.00041095,31]
[312327034,1705776642511,-510.20441833,0.00041095,31]
[312327036,1705776642520,-500.0,0.00041095,31]
[312327038,1705776642529,-1222.46,0.00041095,31]
[312327040,1705776642538,-500.0,0.00041095,31]
[312327042,1705776642547,-500.0,0.00041095,31]
[312327044,1705776642556,-500.0,0.00041095,31]
[312327046,1705776642564,-529.24302427,0.00041095,31]
[312327048,1705776642574,-500.0,0.00041095,31]
[312327050,1705776642583,-156.89388993,0.00041095,31]
[312327052,1705776642593,-500.0,0.00041095,31]
[312327055,1705776642602,-500.0,0.00041095,31]
[312327057,1705776642612,-500.0,0.00041095,31]
[312327075,1705776642730,-500.0,0.00041095,31]
[312327077,1705776642740,-500.0,0.00041095,31]
[312327079,1705776642749,-500.19662977,0.00041095,31]
[312327080,1705776642758,-500.0,0.00041095,31]
[312327082,1705776642768,-1317.61,0.00041095,31]
[312327084,1705776642777,-1317.61,0.00041095,31]
[312327086,1705776642787,-500.0,0.00041095,31]
[312327088,1705776642796,-1317.61,0.00041095,31]
[312327090,1705776642806,-1317.61,0.00041095,31]
[312327092,1705776642815,-501.74933043,0.00041095,31]
[312327094,1705776642824,-1317.61,0.00041095,31]
[312327096,1705776642833,-1317.61,0.00041095,31]
[312327099,1705776642843,-1317.61,0.00041095,31]
[312327100,1705776642852,-1317.61,0.00041095,31]
[312327102,1705776642861,-429.4066776,0.00041095,31]
[312327104,1705776642871,-1317.61,0.00041095,31]
[312327106,1705776642879,-1317.61,0.00041095,31]
[312327108,1705776642889,-500.0,0.00041095,31]
[312327110,1705776642898,-1317.61,0.00041095,31]
[312327112,1705776642907,-1317.61,0.00041095,31]
[312327114,1705776642917,-1317.61,0.00041095,31]
[312327116,1705776642926,-1317.61,0.00041095,31]
[312327118,1705776642935,-1317.61,0.00041095,31]
[312327120,1705776642944,-1317.61,0.00041095,31]
[312327122,1705776642953,-1317.61,0.00041095,31]
[312327124,1705776642962,-500.0,0.00041095,31]
[312327126,1705776642971,-1317.61,0.00041095,31]
[312327128,1705776642981,-1317.61,0.00041095,31]
[312327130,1705776642990,-501.80852807,0.00041095,31]
[312327132,1705776642999,-1317.61,0.00041095,31]
[312327134,1705776643008,-1317.61,0.00041095,31]
[312327136,1705776643017,-1317.61,0.00041095,31]
[312327138,1705776643027,-1317.61,0.00041095,31]
[312327140,1705776643036,-1317.63413947,0.00041095,31]
[312327142,1705776643045,-500.0,0.00041095,31]
[312327144,1705776643054,-500.0,0.00041095,31]
[312327146,1705776643063,-500.0,0.00041095,31]
[312327148,1705776643072,-695.1,0.00041095,31]
[312327150,1705776643084,-511.43936969,0.00041095,31]
[312327152,1705776643092,-500.0,0.00041095,31]
[312327154,1705776643101,-1092.94,0.00041095,31]
[312327156,1705776643111,-500.0,0.00041095,31]
[312327158,1705776643119,-500.57631301,0.00041095,31]
[312327160,1705776643129,-544.34,0.00041095,31]
[312327162,1705776643139,-500.0,0.00041095,31]
[312327164,1705776643148,-500.0,0.00041095,31]
[312327166,1705776643158,-500.0,0.00041095,31]
[312327168,1705776643167,-500.0,0.00041095,31]
[312327170,1705776643177,-500.0,0.00041095,31]
[312327172,1705776643186,-500.0,0.00041095,31]
[312327173,1705776643195,-507.16567858,0.00041095,31]
[312327175,1705776643204,-500.0,0.00041095,31]
[312327177,1705776643214,-2382.64,0.00041095,31]
[312327179,1705776643224,-1000.0,0.00041095,5]
[312327181,1705776643232,-500.0,0.00041095,31]
[312327183,1705776643241,-514.53387714,0.00041095,31]
[312327185,1705776643250,-500.0,0.00041095,31]
[312327187,1705776643259,-500.0,0.00041095,31]
[312327189,1705776643270,-500.0,0.00041095,31]
[312327191,1705776643279,-500.0,0.00041095,31]
[312327193,1705776643288,-500.0,0.00041095,31]
[312327195,1705776643297,-500.0,0.00041095,31]
[312327197,1705776643307,-500.0,0.00041095,31]
[312327199,1705776643316,-500.0,0.00041095,31]
[312327201,1705776643325,-531.82829894,0.00041095,31]
[312327203,1705776643335,-1000.0,0.00041095,2]
[312327205,1705776643343,-384.33930543,0.00041095,4]
[312327207,1705776643353,-500.0,0.00041095,7]
[312327209,1705776643361,-3230.88,0.00041095,31]
[312327211,1705776643371,-182.84096084,0.00041095,31]
[312327213,1705776643380,-500.0,0.00041095,31]
[312327215,1705776643389,-500.0,0.00041095,31]
[312327217,1705776643398,-928.99,0.00041095,31]
[312327219,1705776643407,-500.0,0.00041095,31]
[312327221,1705776643416,-500.0,0.00041095,31]
[312327223,1705776643426,-563.04865596,0.00041095,31]
[312327225,1705776643436,-10297.45913414,0.00041095,4]
[312327227,1705776643445,-620.47380229,0.00041095,4]
[312327229,1705776643454,-500.0,0.00041095,31]
[312327231,1705776643463,-500.0,0.00041095,31]
[312327233,1705776643472,-500.0,0.00041095,31]
[312327235,1705776643481,-500.0,0.00041095,31]
[312327237,1705776643490,-500.0,0.00041095,31]
[312327239,1705776643499,-500.0,0.00041095,31]
[312327241,1705776643509,-585.23056528,0.00041095,31]
[312327243,1705776643518,-500.0,0.00041095,31]
[312327245,1705776643527,-500.0,0.00041095,31]
[312327247,1705776643536,-500.0,0.00041095,31]
[312327249,1705776643545,-500.0,0.00041095,31]
[312327251,1705776643556,-500.0,0.00041095,31]
[312327253,1705776643565,-500.0,0.00041095,31]
[312327255,1705776643574,-500.0,0.00041095,31]
[312327257,1705776643583,-500.0,0.00041095,31]
[312327259,1705776643592,-216.60104163,0.00041095,31]
[312327261,1705776643601,-195.24830445,0.00041095,4]
[312327263,1705776643610,-500.0,0.00041095,31]
[312327264,1705776643619,-1689.43,0.00041095,31]
[312327266,1705776643628,-500.0,0.00041095,31]
[312327269,1705776643637,-1200.76,0.00041095,31]
[312327270,1705776643646,-500.0,0.00041095,31]
[312327272,1705776643656,-200.37400988,0.00041095,2]
[312327274,1705776643665,-500.0,0.00041095,31]
[312327276,1705776643674,-1104.71,0.00041095,31]
[312327278,1705776643683,-656.9,0.00041095,31]
[312327280,1705776643692,-602.26375247,0.00041095,31]
[312327282,1705776643702,-624.18017065,0.00041095,31]
[312327285,1705776643711,-500.0,0.00041095,31]
[312327287,1705776643722,-500.0,0.00041095,31]
[312327289,1705776643731,-500.0,0.00041095,31]
[312327291,1705776643741,-355.8903666,0.00041095,31]
[312327293,1705776643750,-500.0,0.00041095,31]
[312327295,1705776643759,-500.0,0.00041095,31]
[312327296,1705776643768,-463.77481618,0.00041095,31]
[312327298,1705776643778,-500.0,0.00041095,31]
[312327299,1705776643787,-500.0,0.00041095,31]
[312327300,1705776643797,-500.0,0.00041095,31]
[312327301,1705776643807,-500.0,0.00041095,31]
[312327302,1705776643816,-500.0,0.00041095,31]
[312327303,1705776643826,-500.0,0.00041095,31]
[312327304,1705776643835,-500.0,0.00041095,31]
[312327305,1705776643845,-500.0,0.00041095,31]
[312327306,1705776643855,-747.09,0.00041095,31]
[312327307,1705776643864,-537.6453484,0.00041095,31]
[312327308,1705776643874,-500.0,0.00041095,31]
[312327309,1705776643883,-500.0,0.00041095,31]
[312327310,1705776643893,-500.0,0.00041095,31]
[312327311,1705776643902,-500.0,0.00041095,31]
[312327312,1705776643911,-500.0,0.00041095,31]
[312327313,1705776643920,-500.0,0.00041095,31]
[312327314,1705776643929,-500.0,0.00041095,31]
[312327315,1705776643938,-500.0,0.00041095,31]
[312327316,1705776643948,-500.0,0.00041095,31]
[312327317,1705776643957,-405.39244157,0.00041095,31]
[312327318,1705776643966,-500.0,0.00041095,31]
[312327319,1705776643975,-350.59862491,0.00041095,31]
[312327320,1705776643985,-500.0,0.00041095,31]
[312327321,1705776643994,-500.0,0.00041095,31]
[312327322,1705776644003,-500.0,0.00041095,31]
[312327324,1705776644012,-500.0,0.00041095,31]
[312327326,1705776644021,-500.0,0.00041095,31]
[312327328,1705776644031,-500.0,0.00041095,31]
[312327330,1705776644040,-500.0,0.00041095,31]
[312327332,1705776644050,-421.05617268,0.00041095,31]
[312327334,1705776644060,-500.0,0.00041095,31]
[312327337,1705776644070,-504.34519429,0.00041095,31]
[312327339,1705776644080,-205.28134914,0.00041095,31]
[312327340,1705776644091,-502.21,0.00041095,31]
[312327342,1705776644100,-500.0,0.00041095,31]
[312327344,1705776644109,-602.77792774,0.00041095,31]
[312327346,1705776644119,-476.23695225,0.00041095,31]
[312327348,1705776644129,-500.0,0.00041095,31]
[312327350,1705776644139,-500.0,0.00041095,31]
[312327352,1705776644148,-500.0,0.00041095,31]
[312327355,1705776644158,-604.4,0.00041095,31]
[312327356,1705776644168,-500.0,0.00041095,31]
[312327359,1705776644178,-500.0,0.00041095,31]
[312327360,1705776644187,-576.56811558,0.00041095,31]
[312327363,1705776644196,-500.0,0.00041095,31]
[312327365,1705776644206,-501.04974228,0.00041095,31]
[312327367,1705776644215,-195.80960312,0.00041095,31]
[312327369,1705776644227,-500.0,0.00041095,20]
[312327371,1705776644236,-667.38,0.00041095,31]
[312327373,1705776644245,-1000.0,0.00041095,2]
[312327375,1705776644254,-500.0,0.00041095,31]
[312327377,1705776644263,-500.0,0.00041095,31]
[312327379,1705776644272,-500.0,0.00041095,31]
[312327381,1705776644281,-1393.43,0.00041095,31]
[312327382,1705776644291,-500.0,0.00041095,31]
[312327385,1705776644300,-500.0,0.00041095,31]
[312327386,1705776644310,-500.0,0.00041095,31]
[312327389,1705776644319,-500.0,0.00041095,31]
[312327391,1705776644329,-206.47800846,0.00041095,31]
[312327393,1705776644339,-500.0,0.00041095,31]
[312327394,1705776644348,-500.0,0.00041095,31]
[312327396,1705776644357,-500.0,0.00041095,31]
[312327398,1705776644366,-500.0,0.00041095,31]
[312327401,1705776644376,-521.74,0.00041095,31]
[312327403,1705776644385,-500.0,0.00041095,31]
[312327405,1705776644394,-500.0,0.00041095,31]
[312327406,1705776644403,-500.0,0.00041095,31]
[312327408,1705776644413,-721.31,0.00041095,31]
[312327410,1705776644422,-500.0,0.00041095,31]
[312327413,1705776644432,-500.0,0.00041095,31]
[312327414,1705776644441,-500.0,0.00041095,31]
[312327416,1705776644450,-500.0,0.00041095,31]
[312327418,1705776644459,-500.0,0.00041095,31]
[312327421,1705776644469,-500.0,0.00041095,31]
[312327422,1705776644478,-500.0,0.00041095,31]
[312327424,1705776644487,-500.0,0.00041095,31]
[312327427,1705776644496,-500.0,0.00041095,31]
[312327428,1705776644506,-1633.61,0.00041095,31]
[312327430,1705776644514,-678.24,0.00041095,31]
[312327433,1705776644524,-500.0,0.00041095,31]
[312327434,1705776644533,-2637.91,0.00041095,31]
[312327436,1705776644542,-397.44914499,0.00041095,31]
[312327452,1705776644684,-2629.243334,0.00031938,3]
[312327568,1705776646060,-282.0,0.00041095,2]
[312327569,1705776646070,-102.55085501,0.00041095,31]
[312327570,1705776646083,-883.17,0.00041095,31]
[312327571,1705776646092,-500.0,0.00041095,31]
[312327572,1705776646102,-500.0,0.00041095,31]
[312327573,1705776646111,-202.98768437,0.00041095,31]
[312327574,1705776646121,-500.0,0.00041095,31]
[312327575,1705776646130,-500.0,0.00041095,31]
[312327576,1705776646139,-500.0,0.00041095,31]
[312327577,1705776646149,-500.0,0.00041095,31]
[312327578,1705776646160,-500.0,0.00041095,31]
[312327580,1705776646169,-452.1990382,0.00041095,31]
[312327582,1705776646178,-500.0,0.00041095,31]
[312327583,1705776646187,-622.01,0.00041095,31]
[312327585,1705776646296,-500.0,0.00041095,31]
[312327586,1705776646305,-796.08,0.00041095,31]
[312327587,1705776646315,-330.3483337,0.00041095,31]
[312327645,1705776657186,154.78330338,0.00024674,4]
[312327655,1705776963235,45.21669662,0.00021998,4]
[312327709,1705777832245,-154.78330338,0.00021879,4]
[312327710,1705777832254,-157.7467643,0.0002189,2]
[312327810,1705777838395,-294.77252324,0.00021878,2]
[312327812,1705777838405,-5.81771799,0.0002189,2]
[312327814,1705777838414,-1425.34933266,0.00022,2]
[312327816,1705777838423,-154.78330338,0.00022,2]
[312327818,1705777838433,-195.52288915,0.00022,2]
[312327821,1705777838449,-3771.33334143,0.00022,2]
[312327823,1705777838459,-200.0,0.00024199,7]
[312327825,1705777838469,-163.56448229,0.00024492,2]
[312327826,1705777838478,-168.891698,0.0002575,2]
[312327828,1705777838487,-166.666666,0.00026315,2]
[312327830,1705777838496,-280.0,0.00026619,15]
[312327832,1705777838505,-2102.56602861,0.00026748,2]
[312327833,1705777838515,-2073.0632604,0.00026748,2]
[312327834,1705777838525,-470.52459336,0.00026748,2]
[312327835,1705777838534,-24900.0,0.0002675,2]
[312327836,1705777838544,-166.666666,0.00027033,2]
[312327837,1705777838553,-163.56448229,0.00027093,2]
[312327838,1705777838562,-671.64584989,0.00027156,2]
[312327839,1705777838572,-312.53006768,0.00027156,2]
[312327840,1705777838581,-166.666666,0.0002775,2]
[312327841,1705777838592,-166.666666,0.00028468,2]
[312327842,1705777838601,-1871.54655675,0.0002875,4]
[312327844,1705777838611,-165.481452,0.00028767,2]
[312327846,1705777838622,-157.865816,0.00028767,2]
[312327848,1705777838631,-166.666666,0.00029185,2]
[312327850,1705777838641,-391.0,0.00029281,15]
[312327851,1705777838650,-1585.53047083,0.0002949,2]
[312327853,1705777838659,-163.56448229,0.00029695,2]
[312327855,1705777838669,-3652.63,0.0002978,3]
[312327857,1705777838678,-3043.86,0.0002978,3]
[312327858,1705777838688,-2536.55,0.0002978,3]
[312327859,1705777838697,-154.86062544,0.00029788,2]
[312327860,1705777838706,-326.99550108,0.00029788,2]
[312327861,1705777838715,-725.78026082,0.00029788,2]
[312327862,1705777838725,-264.78480522,0.00029789,2]
[312327864,1705777838734,-183443.74263975,0.0002979,7]
[312327866,1705777838743,-157.865816,0.00029795,2]
[312327868,1705777838752,-166.666666,0.00029903,2]
[312327869,1705777838761,-195.24830445,0.0003,4]
[312327871,1705777838770,-42519.20318145,0.0003,2]
[312327873,1705777838779,-6763.78500734,0.0003,4]
[312327875,1705777838788,-22165.86370198,0.0003,2]
[312327877,1705777838798,-6195.3131571,0.0003,2]
[312327879,1705777838807,-30497.95907604,0.0003,3]
[312327881,1705777838816,-2104.48868232,0.0003,4]
[312327883,1705777838825,-18589.14989047,0.0003,2]
[312327885,1705777838835,-699.95088598,0.0003,2]
[312327887,1705777838844,-244.03237749,0.0003,4]
[312327889,1705777838853,-188.0,0.0003,2]
[312327891,1705777838862,-500.0,0.00030136,2]
[312327893,1705777838870,-153.52997654,0.00030499,2]
[312327895,1705777838879,-490.81087528,0.000305,2]
[312327897,1705777838888,-157.865816,0.00030822,2]
[312327899,1705777838897,-410.78936956,0.00030999,2]
[312327901,1705777838906,-615.9347942,0.00030999,2]
[312327903,1705777838915,-500.0,0.00030999,2]
[312327905,1705777838924,-651.14015924,0.00030999,2]
[312327907,1705777838934,-500.0,0.00030999,2]
[312327909,1705777838943,-500.0,0.00030999,2]
[312327911,1705777838952,-500.0,0.00030999,2]
[312327914,1705777838964,-500.0,0.00030999,2]
[312327915,1705777838973,-500.0,0.00030999,2]
[312327918,1705777838983,-500.0,0.00030999,2]
[312327919,1705777838992,-500.0,0.00030999,2]
[312327922,1705777839002,-500.0,0.00030999,2]
[312327924,1705777839011,-491.50311544,0.00030999,2]
[312327926,1705777839021,-500.0,0.00030999,2]
[312327928,1705777839030,-500.0,0.00030999,2]
[312327930,1705777839039,-500.0,0.00030999,2]
[312327931,1705777839048,-362.62023914,0.00030999,2]
[312327933,1705777839058,-197.01850652,0.00030999,2]
[312327935,1705777839067,-500.0,0.00030999,2]
[312327937,1705777839076,-500.0,0.00030999,2]
[312327939,1705777839086,-500.0,0.00030999,2]
[312327942,1705777839095,-500.0,0.00030999,2]
[312327944,1705777839105,-500.0,0.00030999,2]
[312327946,1705777839115,-500.0,0.00030999,2]
[312327948,1705777839125,-500.0,0.00030999,2]
[312327950,1705777839135,-500.0,0.00030999,2]
[312327951,1705777839144,-500.0,0.00030999,2]
[312327953,1705777839154,-177809.90143555,0.00031,2]
[312327955,1705777839162,-238.14143998,0.00031,4]
[312327957,1705777839172,-150.0,0.00031499,2]
[312327960,1705777839182,-157.865816,0.00031849,2]
[312327961,1705777839191,-25868.04181508,0.000319,2]
[312327964,1705777839200,-682.20107228,0.00031998,4]
[312327965,1705777839210,-180.23341861,0.00031998,4]
[312327968,1705777839219,-154.95351395,0.00031998,4]
[312327970,1705777839229,-342.76081118,0.00031998,4]
[312327971,1705777839239,-1139.87767947,0.00031998,4]
[312327973,1705777839248,-316.64538569,0.00031998,4]
[312327975,1705777839258,-154.95351395,0.00031998,4]
[312327977,1705777839267,-194.50083425,0.00031998,4]
[312327980,1705777839278,-181.83131421,0.00031998,4]
[312327982,1705777839288,-6461.67830607,0.00031998,4]
[312327984,1705777839298,-285201.86665853,0.00032,4]
[312327986,1705777839307,-154.78330338,0.00032,4]
[312327988,1705777839317,-200.0,0.00032209,15]
[312327990,1705777839326,-348.0,0.00032209,15]
[312327992,1705777839335,-475.68781302,0.00032264,2]
[312327994,1705777839344,-457.79124181,0.00032264,4]
[312327995,1705777839355,-412.32449765,0.00032264,4]
[312327997,1705777839364,-620.66988602,0.00032264,4]
[312328000,1705777839374,-500.0,0.00032264,4]
[312328001,1705777839383,-500.0,0.00032264,4]
[312328004,1705777839392,-500.0,0.00032264,4]
[312328006,1705777839402,-555.52663894,0.00032264,4]
[312328008,1705777839411,-2955.16392151,0.00032265,4]
[312328010,1705777839421,-336.67921953,0.00032265,4]
[312328023,1705777839550,-50000.0,0.00032265,6]
[312328025,1705777839560,-50000.0,0.00032265,6]
[312328026,1705777839569,-50000.0,0.00032265,6]
[312328028,1705777839578,-76612.54337164,0.00032265,6]
[312328030,1705777839589,-30258.83914004,0.00032265,4]
[312328032,1705777839599,-1094.47895322,0.000325,20]
[312328034,1705777839609,-150.77383924,0.0003251,2]
[312328036,1705777839618,-151.0,0.0003255,2]
[312328038,1705777839628,-8068.77590537,0.00032575,2]
[312328040,1705777839637,-2462.99366636,0.00032575,2]
[312328042,1705777839645,-551.86502303,0.00032575,2]
[312328044,1705777839654,-151.0,0.00032836,2]
[312328046,1705777839664,-250.0,0.00032876,7]
[312328048,1705777839673,-461.95109565,0.00032876,7]
[312328050,1705777839683,-176.05258695,0.00032876,7]
[312328052,1705777839692,-488.35511943,0.00032876,7]
[312328054,1705777839701,-500.0,0.00032876,7]
[312328056,1705777839710,-500.0,0.00032876,7]
[312328057,1705777839719,-243.62733658,0.00032876,7]
[312328059,1705777839728,-500.0,0.00032876,7]
[312328060,1705777839737,-500.0,0.00032876,7]
[312328061,1705777839746,-500.0,0.00032876,7]
[312328062,1705777839756,-500.0,0.00032876,7]
[312328063,1705777839765,-500.0,0.00032876,7]
[312328064,1705777839774,-500.0,0.00032876,7]
[312328065,1705777839783,-396.96517936,0.00032876,7]
[312328066,1705777839793,-500.0,0.00032876,7]
[312328067,1705777839802,-500.0,0.00032876,7]
[312328068,1705777839811,-500.0,0.00032876,7]
[312328069,1705777839823,-500.0,0.00032876,7]
[312328070,1705777839832,-522.76387989,0.00032876,7]
[312328071,1705777839842,-500.0,0.00032876,7]
[312328072,1705777839851,-500.0,0.00032876,7]
[312328073,1705777839860,-157.865816,0.00032877,2]
[312328074,1705777839870,-154.78330338,0.00033,4]
[312328075,1705777839879,-2846.05665284,0.00033,2]
[312328076,1705777839888,-158.97429893,0.00033,2]
[312328077,1705777839898,-165.0,0.00033,2]
[312328078,1705777839907,-171.0,0.00033,2]
[312328079,1705777839916,-188.0,0.00033,2]
[312328080,1705777839925,-151.0,0.00033123,2]
[312328081,1705777839934,-151.0,0.00033409,2]
[312328082,1705777839943,-249.63618982,0.00033587,2]
[312328083,1705777839952,-151.0,0.00033695,2]
[312328084,1705777839961,-157.865816,0.00033904,2]
[312328085,1705777839971,-151.0,0.00033981,2]
[312328086,1705777839981,-171.79662836,0.00034,7]
[312328087,1705777839990,-1550.76333748,0.00034,3]
[312328088,1705777840000,-10990.39266955,0.00034,2]
[312328089,1705777840010,-500.0,0.00034246,7]
[312328090,1705777840019,-151.0,0.00034267,2]
[312328091,1705777840029,-151.0,0.00034553,2]
[312328092,1705777840039,-151.0,0.0003484,2]
[312328093,1705777840049,-157.865816,0.00034932,2]
[312328094,1705777840058,-591.88726683,0.00035,2]
[312328095,1705777840068,-154.78330338,0.00035,4]
[312328096,1705777840077,-3119.96924767,0.00035,20]
[312328097,1705777840086,-333.12649891,0.00035,4]
[312328098,1705777840095,-2085.08363542,0.00035,4]
[312328099,1705777840105,-154.78330338,0.00035,6]
[312328100,1705777840114,-548.14664073,0.00035,7]
[312328101,1705777840124,-157.8896426,0.00035,2]
[312328102,1705777840133,-31980.30894113,0.00035,4]
[312328103,1705777840143,-2356.16401148,0.00035,2]
[312328104,1705777840152,-155.23866682,0.00035,2]
[312328105,1705777840162,-333.12649891,0.00035,4]
[312328106,1705777840171,-151.0,0.00035126,4]
[312328107,1705777840181,-500.0,0.000353,7]
[312328108,1705777840192,-500.0,0.000353,7]
[312328109,1705777840203,-151.0,0.00035412,4]
[312328110,1705777840213,-200.0,0.0003543,15]
[312328111,1705777840223,-200.0,0.0003543,15]
[312328112,1705777840233,-368.0,0.0003543,15]
[312328113,1705777840243,-4425.50824305,0.000355,14]
[312328114,1705777840253,-500.0,0.000356,7]
[312328115,1705777840262,-500.0,0.000356,7]
[312328116,1705777840272,-500.0,0.00035616,2]
[312328117,1705777840282,-500.0,0.00035616,2]
[312328118,1705777840291,-500.0,0.00035616,2]
[312328119,1705777840301,-500.0,0.00035616,2]
[312328120,1705777840310,-500.0,0.00035616,2]
[312328121,1705777840320,-500.0,0.00035616,2]
[312328122,1705777840329,-500.0,0.00035616,2]
[312328123,1705777840339,-291.50651603,0.00035616,2]
[312328124,1705777840349,-750.0,0.00035616,7]
[312328125,1705777840358,-182.36949,0.00035616,120]
[312328126,1705777840367,-151.0,0.00035698,4]
[312328127,1705777840377,-1000.0,0.000359,7]
[312328128,1705777840386,-1000.0,0.000359,7]
[312328130,1705777840395,-5000.0,0.00035956,2]
[312328131,1705777840404,-157.865816,0.00035959,2]
[312328132,1705777840413,-151.0,0.00035984,4]
[312328133,1705777840422,-188.0,0.00036,2]
[312328134,1705777840431,-150.77383924,0.00036123,2]
[312328135,1705777840440,-250.11570644,0.00036123,2]
[312328136,1705777840450,-1000.0,0.000362,7]
[312328137,1705777840464,-160.81104418,0.00036205,2]
[312328138,1705777840473,-151.0,0.0003627,4]
[312328139,1705777840482,-151.0,0.00036557,4]
[312328140,1705777840492,-301.54767848,0.0003673,4]
[312328141,1705777840501,-151.0,0.00036843,4]
[312328142,1705777840511,-154.78330338,0.00036986,7]
[312328143,1705777840520,-1000.0,0.00036986,7]
[312328144,1705777840529,-157.865816,0.00036986,2]
[312328145,1705777840539,-154.78330338,0.00037,4]
[312328146,1705777840548,-150.0,0.00037,30]
[312328147,1705777840558,-151.0,0.00037129,4]
[312328148,1705777840567,-302.0,0.0003718,2]
[312328149,1705777840576,-300.0,0.0003718,2]
[312328150,1705777840585,-150.0,0.000372,30]
[312328151,1705777840595,-603.09535696,0.00037347,7]
[312328152,1705777840604,-212.642763,0.000374,30]
[312328153,1705777840615,-151.0,0.00037415,4]
[312328154,1705777840624,-151.0,0.00037701,4]
[312328155,1705777840632,-150.0,0.00037749,2]
[312328156,1705777840641,-166.74380429,0.00037975,4]
[312328157,1705777840650,-151.0,0.00037988,4]
[312328158,1705777840659,-2139.23248446,0.00038,4]
[312328159,1705777840669,-3679.38300141,0.00038,4]
[312328160,1705777840679,-155.0,0.00038,2]
[312328161,1705777840687,-157.865816,0.00038014,2]
[312328162,1705777840697,-6186.61024083,0.00038221,7]
[312328163,1705777840706,-151.0,0.00038274,4]
[312328164,1705777840715,-1206.19071393,0.00038292,30]
[312328165,1705777840725,-1250.0,0.00038356,7]
[312328166,1705777840734,-151.0,0.0003856,4]
[312328167,1705777840744,-151.0,0.00038846,4]
[312328168,1705777840753,-200.0,0.00038973,30]
[312328169,1705777840762,-200.0,0.00038973,30]
[312328170,1705777840771,-200.0,0.00038973,30]
[312328171,1705777840780,-200.0,0.00038973,30]
[312328172,1705777840789,-275.0,0.00038973,30]
[312328173,1705777840799,-550.20559453,0.00038995,2]